fUST/lending_fUST_20240910
["ID","MTS","AMOUNT","RATE_DAILY","PERIOD"]
[337693159,1725966645294,-684.91,0.00019701,2]
[337693161,1725966645304,-151.0,0.00019701,2]
[337693162,1725966645314,-151.0,0.00019701,2]
[337693164,1725966645324,-500.0,0.00019701,2]
[337693166,1725966645335,-1188.46622224,0.00019701,2]
[337693226,1725966645987,-500.0,0.000197,2]
[337693228,1725966645998,-118.39377776,0.00019701,2]
[337693230,1725966646008,-439.431304,0.00019701,2]
[337693232,1725966646018,-726.66,0.00019701,2]
[337693233,1725966646028,-439.431304,0.00019701,2]
[337693235,1725966646037,-577.66,0.00019701,2]
[337693237,1725966646046,-754.33,0.00019701,2]
[337693239,1725966646057,-500.0,0.00019701,2]
[337693241,1725966646067,-500.0,0.00019701,2]
[337693243,1725966646076,-649.62,0.00019701,2]
[337693245,1725966646085,-151.0,0.00019701,2]
[337693247,1725966646094,-2193.09,0.00019701,2]
[337693249,1725966646107,-498.631448,0.00019701,2]
[337693251,1725966646117,-498.631448,0.00019701,2]
[337693253,1725966646127,-700.22,0.00019701,2]
[337693255,1725966646136,-500.0,0.00019701,2]
[337693257,1725966646146,-346.984565,0.00019701,2]
[337693258,1725966646155,-346.984565,0.00019701,2]
[337693260,1725966646164,-500.0,0.00019701,2]
[337693262,1725966646174,-1950.02,0.00019701,2]
[337693264,1725966646184,-867.46,0.00019701,2]
[337693266,1725966646195,-151.0,0.00019701,2]
[337693268,1725966646204,-498.759595,0.00019701,2]
[337693270,1725966646213,-842.8,0.00019701,2]
[337693272,1725966646222,-151.0,0.00019701,2]
[337693274,1725966646233,-498.759595,0.00019701,2]
[337693275,1725966646243,-502.7144767,0.00019701,2]
[337693277,1725966646253,-500.0,0.00019701,2]
[337693279,1725966646262,-575.62,0.00019701,2]
[337693281,1725966646271,-774.96,0.00019701,2]
[337693283,1725966646281,-151.0,0.00019701,2]
[337693285,1725966646290,-151.0,0.00019701,2]
[337693287,1725966646301,-265.016535,0.00019701,2]
[337693288,1725966646310,-178.720629,0.00019701,2]
[337693290,1725966646320,-265.016535,0.00019701,2]
[337693292,1725966646329,-239.747614,0.00019701,2]
[337693294,1725966646339,-239.747614,0.00019701,2]
[337693296,1725966646348,-4000.0,0.00019701,2]
[337693298,1725966646358,-4000.0,0.00019701,2]
[337693300,1725966646367,-4000.0,0.00019701,2]
[337693302,1725966646376,-4000.0,0.00019701,2]
[337693304,1725966646386,-1794.437912,0.00019701,2]
[337693306,1725966646396,-151.920782,0.00019701,2]
[337693308,1725966646406,-151.0,0.00019701,2]
[337693310,1725966646415,-151.0,0.00019701,2]
[337693312,1725966646425,-500.0,0.00019773,2]
[337693314,1725966646435,-500.0,0.00019773,2]
[337693315,1725966646445,-500.0,0.00019773,2]
[337693317,1725966646454,-235.56076946,0.00019773,2]
[337693319,1725966646463,-500.0,0.00019773,2]
[337693321,1725966646472,-500.0,0.00019773,2]
[337693323,1725966646481,-500.0,0.00019773,2]
[337693325,1725966646491,-506.34394081,0.00019773,2]
[337693327,1725966646500,-540.5179607,0.00019773,2]
[337693329,1725966646510,-500.0,0.00019773,2]
[337693331,1725966646519,-500.0,0.00019773,2]
[337693333,1725966646528,-401.34076246,0.00019773,2]
[337693335,1725966646538,-555.55433214,0.00019773,2]
[337693337,1725966646547,-500.0,0.00019773,2]
[337693338,1725966646557,-500.0,0.00019773,2]
[337693340,1725966646566,-151.0,0.00019773,2]
[337693342,1725966646576,-265.016535,0.00019773,2]
[337693344,1725966646585,-265.016535,0.00019773,2]
[337693346,1725966646596,-239.747614,0.00019773,2]
[337693348,1725966646606,-239.747614,0.00019773,2]
[337693350,1725966646615,-151.0,0.00019773,2]
[337693352,1725966646625,-153.347427,0.00019773,2]
[337693354,1725966646634,-500.0,0.00019795,2]
[337693356,1725966646644,-500.0,0.00019795,2]
[337693357,1725966646653,-500.0,0.00019796,2]
[337693359,1725966646662,-500.0,0.00019796,2]
[337693361,1725966646672,-500.0,0.00019796,2]
[337693363,1725966646681,-151.0,0.00019796,2]
[337693365,1725966646691,-151.0,0.00019796,2]
[337693367,1725966646700,-151.0,0.00019796,2]
[337693385,1725966646873,-151.0,0.00019796,2]
[337693387,1725966646883,-151.0,0.00019796,2]
[337693389,1725966646892,-257.184138,0.00019796,2]
[337693391,1725966646902,-257.184138,0.00019796,2]
[337693393,1725966646911,-151.0,0.00019796,2]
[337693395,1725966646921,-6530.53,0.00019796,2]
[337693397,1725966646931,-500.0,0.00019796,2]
[337693399,1725966646940,-500.0,0.00019796,2]
[337693401,1725966646951,-500.0,0.00019796,2]
[337693402,1725966646960,-500.0,0.00019796,2]
[337693404,1725966646969,-554.18,0.00019796,2]
[337693406,1725966646978,-786.05,0.00019796,2]
[337693408,1725966646987,-2159.02,0.00019796,2]
[337693410,1725966646996,-512.49,0.00019796,2]
[337693412,1725966647005,-191.613496,0.00019796,2]
[337693414,1725966647014,-191.613496,0.00019796,2]
[337693416,1725966647024,-151.0,0.00019796,2]
[337693418,1725966647033,-151.0,0.00019796,2]
[337693420,1725966647043,-500.0,0.00019796,2]
[337693421,1725966647052,-191.613496,0.00019796,2]
[337693423,1725966647060,-191.613496,0.00019796,2]
[337693425,1725966647070,-1491.24,0.00019796,2]
[337693427,1725966647078,-151.0,0.00019796,2]
[337693429,1725966647088,-151.0,0.00019796,2]
[337693431,1725966647098,-151.0,0.00019796,2]
[337693433,1725966647109,-151.0,0.00019796,2]
[337693435,1725966647119,-294.84518,0.00019796,2]
[337693436,1725966647128,-2187.85,0.00019796,2]
[337693438,1725966647139,-528.244487,0.00019796,2]
[337693440,1725966647150,-528.244487,0.00019796,2]
[337693442,1725966647159,-528.244487,0.00019796,2]
[337693444,1725966647168,-528.244487,0.00019796,2]
[337693446,1725966647179,-222.826076,0.00019796,2]
[337693447,1725966647190,-4459.95,0.00019796,2]
[337693449,1725966647208,-222.826076,0.00019796,2]
[337693451,1725966647217,-393.946806,0.00019796,2]
[337693453,1725966647228,-393.946806,0.00019796,2]
[337693455,1725966647238,-393.946806,0.00019796,2]
[337693457,1725966647247,-393.946806,0.00019796,2]
[337693459,1725966647257,-151.0,0.00019796,2]
[337693461,1725966647266,-151.0,0.00019796,2]
[337693463,1725966647275,-151.0,0.00019796,2]
[337693465,1725966647285,-222.313614,0.00019796,2]
[337693467,1725966647294,-889.73,0.00019796,2]
[337693469,1725966647303,-439.431304,0.00019796,2]
[337693470,1725966647312,-439.431304,0.00019796,2]
[337693472,1725966647321,-439.431304,0.00019796,2]
[337693474,1725966647331,-439.431304,0.00019796,2]
[337693476,1725966647342,-500.0,0.00019796,2]
[337693478,1725966647351,-498.631448,0.00019796,2]
[337693480,1725966647361,-498.631448,0.00019796,2]
[337693482,1725966647370,-498.631448,0.00019796,2]
[337693484,1725966647380,-498.631448,0.00019796,2]
[337693486,1725966647389,-500.0,0.00019796,2]
[337693488,1725966647399,-346.984565,0.00019796,2]
[337693489,1725966647409,-346.984565,0.00019796,2]
[337693491,1725966647420,-1636.26,0.00019796,2]
[337693493,1725966647430,-346.984565,0.00019796,2]
[337693495,1725966647444,-346.984565,0.00019796,2]
[337693497,1725966647454,-731.18,0.00019796,2]
[337693499,1725966647463,-1349.92,0.00019796,2]
[337693501,1725966647472,-151.0,0.00019796,2]
[337693503,1725966647481,-585.5,0.00019796,2]
[337693505,1725966647490,-498.759595,0.00019796,2]
[337693507,1725966647499,-498.759595,0.00019796,2]
[337693509,1725966647508,-238.886636,0.00019796,2]
[337693511,1725966647517,-498.759595,0.00019796,2]
[337693512,1725966647526,-498.759595,0.00019796,2]
[337693514,1725966647535,-500.0,0.00019796,2]
[337693516,1725966647546,-1791.15,0.00019796,2]
[337693518,1725966647556,-151.0,0.00019796,2]
[337693520,1725966647565,-151.0,0.00019796,2]
[337693522,1725966647574,-265.016535,0.00019796,2]
[337693524,1725966647584,-75174.17,0.00019796,2]
[337693526,1725966647593,-265.016535,0.00019796,2]
[337693528,1725966647602,-239.747614,0.00019796,2]
[337693530,1725966647612,-239.747614,0.00019796,2]
[337693532,1725966647622,-695.74,0.00019796,2]
[337693533,1725966647632,-500.0,0.00019796,2]
[337693535,1725966647642,-500.0,0.00019796,2]
[337693537,1725966647652,-500.0,0.00019796,2]
[337693539,1725966647661,-500.0,0.00019796,2]
[337693541,1725966647670,-151.0,0.00019796,2]
[337693543,1725966647680,-500.0,0.00019797,2]
[337693545,1725966647690,-151.0,0.00019797,2]
[337693547,1725966647700,-151.0,0.00019797,2]
[337693549,1725966647711,-151.0,0.00019797,2]
[337693551,1725966647720,-151.0,0.00019797,2]
[337693553,1725966647729,-257.184138,0.00019797,2]
[337693555,1725966647739,-257.184138,0.00019797,2]
[337693557,1725966647748,-151.0,0.00019797,2]
[337693559,1725966647758,-500.0,0.00019797,2]
[337693560,1725966647767,-500.0,0.00019797,2]
[337693562,1725966647776,-222.826076,0.00019797,2]
[337693564,1725966647786,-222.826076,0.00019797,2]
[337693566,1725966647796,-1520.09,0.00019797,2]
[337693568,1725966647806,-393.946806,0.00019797,2]
[337693569,1725966647815,-393.946806,0.00019797,2]
[337693571,1725966647824,-7622.91,0.00019797,2]
[337693573,1725966647833,-439.431304,0.00019797,2]
[337693575,1725966647842,-439.431304,0.00019797,2]
[337693577,1725966647851,-1049.2,0.00019797,2]
[337693579,1725966647860,-1734.35,0.00019797,2]
[337693581,1725966647869,-498.631448,0.00019797,2]
[337693583,1725966647878,-498.631448,0.00019797,2]
[337693584,1725966647887,-346.984565,0.00019797,2]
[337693586,1725966647896,-346.984565,0.00019797,2]
[337693588,1725966647906,-500.0,0.00019797,2]
[337693590,1725966647915,-498.759595,0.00019797,2]
[337693592,1725966647924,-498.759595,0.00019797,2]
[337693594,1725966647933,-838.26,0.00019797,2]
[337693596,1725966647943,-151.0,0.00019797,2]
[337693597,1725966647952,-265.016535,0.00019797,2]
[337693599,1725966647962,-265.016535,0.00019797,2]
[337693601,1725966647971,-239.747614,0.00019797,2]
[337693603,1725966647981,-500.59499031,0.00019797,2]
[337693605,1725966647990,-239.747614,0.00019797,2]
[337693607,1725966648000,-500.0,0.00019797,2]
[337693609,1725966648009,-500.0,0.00019797,2]
[337693611,1725966648019,-662.66,0.00019797,2]
[337693613,1725966648028,-151.0,0.00019797,2]
[337693615,1725966648037,-184.399387,0.00019798,2]
[337693617,1725966648047,-184.399387,0.00019798,2]
[337693618,1725966648057,-500.0,0.00019798,2]
[337693620,1725966648066,-500.0,0.00019798,2]
[337693622,1725966648075,-500.0,0.00019798,2]
[337693623,1725966648084,-151.0,0.00019798,2]
[337693624,1725966648094,-151.0,0.00019798,2]
[337693625,1725966648108,-151.0,0.00019798,2]
[337693626,1725966648117,-151.0,0.00019798,2]
[337693627,1725966648126,-500.0,0.00019798,2]
[337693628,1725966648136,-500.0,0.00019798,2]
[337693629,1725966648146,-151.0,0.00019798,2]
[337693630,1725966648157,-151.0,0.00019798,2]
[337693631,1725966648166,-151.0,0.00019798,2]
[337693632,1725966648177,-257.184138,0.00019798,2]
[337693633,1725966648189,-257.184138,0.00019798,2]
[337693634,1725966648198,-500.0,0.00019798,2]
[337693635,1725966648207,-500.0,0.00019798,2]
[337693636,1725966648217,-500.0,0.00019798,2]
[337693637,1725966648228,-500.0,0.00019798,2]
[337693638,1725966648238,-500.0,0.00019798,2]
[337693639,1725966648247,-191.613496,0.00019798,2]
[337693640,1725966648256,-151.0,0.00019798,2]
[337693641,1725966648266,-191.613496,0.00019798,2]
[337693642,1725966648276,-151.0,0.00019798,2]
[337693643,1725966648286,-151.0,0.00019798,2]
[337693644,1725966648296,-528.244487,0.00019798,2]
[337693645,1725966648305,-528.244487,0.00019798,2]
[337693646,1725966648314,-222.826076,0.00019798,2]
[337693647,1725966648324,-222.826076,0.00019798,2]
[337693648,1725966648333,-500.0,0.00019798,2]
[337693649,1725966648342,-500.0,0.00019798,2]
[337693650,1725966648353,-500.0,0.00019798,2]
[337693651,1725966648362,-500.0,0.00019798,2]
[337693652,1725966648372,-335.36452382,0.00019798,2]
[337693653,1725966648383,-10820.18465593,0.00019799,3]
[337693654,1725966648393,-504.4577273,0.00019799,2]
[337693655,1725966648402,-500.0,0.00019799,2]
[337693656,1725966648411,-500.0,0.00019799,2]
[337693657,1725966648422,-500.0,0.00019799,2]
[337693659,1725966648431,-500.0,0.00019799,2]
[337693660,1725966648442,-500.0,0.00019799,2]
[337693662,1725966648451,-500.0,0.00019799,2]
[337693664,1725966648461,-826.16,0.00019799,2]
[337693666,1725966648470,-500.0,0.00019799,2]
[337693668,1725966648479,-340.00527328,0.00019799,2]
[337693670,1725966648488,-500.0,0.00019799,2]
[337693672,1725966648498,-500.0,0.00019799,2]
[337693674,1725966648507,-500.0,0.00019799,2]
[337693676,1725966648517,-500.0,0.00019799,2]
[337693678,1725966648526,-869.57,0.00019799,2]
[337693680,1725966648536,-501.58509281,0.00019799,2]
[337693682,1725966648547,-500.0,0.00019799,2]
[337693684,1725966648556,-500.0,0.00019799,2]
[337693686,1725966648566,-500.0,0.00019799,2]
[337693688,1725966648575,-500.0,0.00019799,2]
[337693690,1725966648584,-1048.28,0.00019799,2]
[337693692,1725966648594,-518.71610725,0.00019799,2]
[337693694,1725966648603,-228.15259625,0.00019799,2]
[337693696,1725966648613,-500.0,0.00019799,2]
[337693698,1725966648622,-500.0,0.00019799,2]
[337693700,1725966648632,-500.0,0.00019799,2]
[337693702,1725966648641,-500.0,0.00019799,2]
[337693704,1725966648650,-500.0,0.00019799,2]
[337693706,1725966648659,-500.0,0.00019799,2]
[337693708,1725966648669,-500.0,0.00019799,2]
[337693710,1725966648678,-500.0,0.00019799,2]
[337693712,1725966648688,-500.0,0.00019799,2]
[337693714,1725966648697,-426.54432643,0.00019799,2]
[337693716,1725966648707,-500.0,0.00019799,2]
[337693718,1725966648717,-1047.27,0.00019799,2]
[337693720,1725966648726,-500.0,0.00019799,2]
[337693723,1725966648736,-503.44565539,0.00019799,2]
[337693725,1725966648745,-415.26761324,0.00019799,2]
[337693727,1725966648754,-508.08860697,0.00019799,2]
[337693729,1725966648764,-500.0,0.00019799,2]
[337693731,1725966648773,-503.78826697,0.00019799,2]
[337693733,1725966648782,-500.0,0.00019799,2]
[337693735,1725966648791,-706.84,0.00019799,2]
[337693737,1725966648801,-500.0,0.00019799,2]
[337693739,1725966648810,-500.0,0.00019799,2]
[337693741,1725966648820,-500.0,0.00019799,2]
[337693743,1725966648829,-151.0,0.00019799,2]
[337693745,1725966648838,-500.0,0.00019799,2]
[337693747,1725966648847,-500.0,0.00019799,2]
[337693749,1725966648856,-500.0,0.00019799,2]
[337693751,1725966648865,-502.56308793,0.00019799,2]
[337693753,1725966648876,-336.55467153,0.00019799,2]
[337693755,1725966648886,-509.67127662,0.00019799,2]
[337693757,1725966648895,-500.0,0.00019799,2]
[337693759,1725966648904,-500.0,0.00019799,2]
[337693761,1725966648915,-500.0,0.00019799,2]
[337693763,1725966648924,-500.0,0.00019799,2]
[337693765,1725966648935,-504.21402138,0.00019799,2]
[337693767,1725966648945,-500.0,0.00019799,2]
[337693769,1725966648954,-500.0,0.00019799,2]
[337693771,1725966648964,-500.0,0.00019799,2]
[337693773,1725966648973,-716.91,0.00019799,2]
[337693775,1725966648983,-3850.55,0.00019799,2]
[337693777,1725966648992,-500.0,0.00019799,2]
[337693779,1725966649002,-500.0,0.00019799,2]
[337693781,1725966649011,-500.0,0.00019799,2]
[337693783,1725966649021,-853.8,0.00019799,2]
[337693785,1725966649030,-509.15737414,0.00019799,2]
[337693787,1725966649039,-496.46756943,0.00019799,2]
[337693789,1725966649049,-500.0,0.00019799,2]
[337693792,1725966649059,-500.0,0.00019799,2]
[337693794,1725966649068,-500.0,0.00019799,2]
[337693796,1725966649079,-500.0,0.00019799,2]
[337693798,1725966649090,-734.41,0.00019799,2]
[337693800,1725966649104,-500.0,0.00019799,2]
[337693802,1725966649114,-500.0,0.00019799,2]
[337693804,1725966649123,-151.841297,0.00019799,2]
[337693806,1725966649133,-511.950369,0.00019799,2]
[337693808,1725966649142,-500.0,0.00019799,2]
[337693810,1725966649152,-511.950369,0.00019799,2]
[337693812,1725966649162,-980.71,0.00019799,2]
[337693814,1725966649172,-502.52948924,0.00019799,2]
[337693817,1725966649184,-500.0,0.00019799,2]
[337693819,1725966649193,-500.0,0.00019799,2]
[337693821,1725966649203,-846.4,0.00019799,2]
[337693823,1725966649213,-500.0,0.00019799,2]
[337693825,1725966649223,-500.0,0.00019799,2]
[337693827,1725966649233,-500.0,0.00019799,2]
[337693829,1725966649243,-922.76,0.00019799,2]
[337693831,1725966649253,-500.0,0.00019799,2]
[337693832,1725966649263,-500.0,0.00019799,2]
[337693833,1725966649273,-501.42546456,0.00019799,2]
[337693834,1725966649283,-500.0,0.00019799,2]
[337693835,1725966649294,-500.0,0.00019799,2]
[337693836,1725966649305,-503.87599347,0.00019799,2]
[337693837,1725966649315,-511.06413432,0.00019799,2]
[337693838,1725966649327,-514.4621141,0.00019799,2]
[337693839,1725966649336,-525.41,0.00019799,2]
[337693840,1725966649346,-500.0,0.00019799,2]
[337693841,1725966649357,-500.0,0.00019799,2]
[337693842,1725966649366,-500.0,0.00019799,2]
[337693843,1725966649375,-500.0,0.00019799,2]
[337693844,1725966649384,-691.23,0.00019799,2]
[337693845,1725966649395,-500.0,0.00019799,2]
[337693846,1725966649404,-588.25,0.00019799,2]
[337693847,1725966649414,-594.52131476,0.00019799,2]
[337693848,1725966649423,-500.0,0.00019799,2]
[337693849,1725966649433,-350.4651043,0.00019799,2]
[337693850,1725966649443,-615.45233055,0.00019799,2]
[337693851,1725966649452,-500.0,0.00019799,2]
[337693852,1725966649462,-1319.32,0.00019799,2]
[337693853,1725966649472,-500.0,0.00019799,2]
[337693854,1725966649481,-500.0,0.00019799,2]
[337693856,1725966649490,-500.0,0.00019799,2]
[337693858,1725966649500,-500.0,0.00019799,2]
[337693859,1725966649510,-184.399387,0.00019799,2]
[337693861,1725966649520,-184.399387,0.00019799,2]
[337693863,1725966649531,-500.0,0.00019799,2]
[337693864,1725966649541,-551.44,0.00019799,2]
[337693866,1725966649550,-184.399387,0.00019799,2]
[337693868,1725966649560,-184.399387,0.00019799,2]
[337693869,1725966649570,-616.84360758,0.00019799,2]
[337693870,1725966649579,-502.90676707,0.00019799,2]
[337693872,1725966649590,-500.0,0.00019799,2]
[337693873,1725966649599,-500.0,0.00019799,2]
[337693874,1725966649609,-500.0,0.00019799,2]
[337693875,1725966649619,-500.0,0.00019799,2]
[337693876,1725966649629,-500.0,0.00019799,2]
[337693877,1725966649641,-500.0,0.00019799,2]
[337693878,1725966649651,-243.94666284,0.00019799,2]
[337693879,1725966649660,-500.0,0.00019799,2]
[337693880,1725966649669,-248.972063,0.00019799,2]
[337693881,1725966649678,-500.0,0.00019799,2]
[337693882,1725966649688,-500.0,0.00019799,2]
[337693883,1725966649698,-500.0,0.00019799,2]
[337693884,1725966649707,-500.0,0.00019799,2]
[337693885,1725966649716,-1299.51,0.00019799,2]
[337693886,1725966649726,-521.75749717,0.00019799,2]
[337693887,1725966649735,-510.76,0.00019799,2]
[337693888,1725966649746,-151.0,0.00019799,2]
[337693889,1725966649756,-151.0,0.00019799,2]
[337693890,1725966649765,-500.0,0.00019799,2]
[337693891,1725966649775,-151.0,0.00019799,2]
[337693892,1725966649784,-203.3078,0.00019799,2]
[337693893,1725966649795,-618.69,0.00019799,2]
[337693894,1725966649805,-502.71739574,0.00019799,2]
[337693895,1725966649815,-500.0,0.00019799,2]
[337693896,1725966649826,-502.75758348,0.00019799,2]
[337693897,1725966649837,-202.27785251,0.00019799,2]
[337693898,1725966649848,-500.0,0.00019799,2]
[337693899,1725966649858,-500.0,0.00019799,2]
[337693900,1725966649868,-500.0,0.00019799,2]
[337693901,1725966649877,-500.0,0.00019799,2]
[337693902,1725966649887,-232.89018059,0.00019799,2]
[337693903,1725966649896,-500.0,0.00019799,2]
[337693904,1725966649906,-500.0,0.00019799,2]
[337693905,1725966649916,-946.82,0.00019799,2]
[337693906,1725966649925,-599.64,0.00019799,2]
[337693907,1725966649935,-750.12,0.00019799,2]
[337693908,1725966649947,-500.0,0.00019799,2]
[337693909,1725966649958,-500.0,0.00019799,2]
[337693910,1725966649968,-500.0,0.00019799,2]
[337693911,1725966649978,-500.0,0.00019799,2]
[337693912,1725966649987,-1385.27,0.00019799,2]
[337693913,1725966649996,-500.0,0.00019799,2]
[337693914,1725966650006,-500.0,0.00019799,2]
[337693915,1725966650016,-687.57,0.00019799,2]
[337693916,1725966650025,-572.78,0.00019799,2]
[337693917,1725966650034,-500.0,0.00019799,2]
[337693918,1725966650044,-591.75,0.00019799,2]
[337693919,1725966650053,-500.0,0.00019799,2]
[337693920,1725966650062,-500.0,0.00019799,2]
[337693921,1725966650071,-500.0,0.00019799,2]
[337693922,1725966650081,-503.0563904,0.00019799,2]
[337693923,1725966650230,-500.0,0.00019799,2]
[337693924,1725966650240,-619.02574312,0.00019799,2]
[337693925,1725966650250,-500.0,0.00019799,2]
[337693926,1725966650259,-500.0,0.00019799,2]
[337693927,1725966650269,-500.0,0.00019799,2]
[337693928,1725966650279,-1082.73,0.00019799,2]
[337693929,1725966650288,-500.0,0.00019799,2]
[337693930,1725966650297,-500.0,0.00019799,2]
[337693931,1725966650306,-1887.71,0.00019799,2]
[337693932,1725966650316,-500.0,0.00019799,2]
[337693933,1725966650326,-500.0,0.00019799,2]
[337693934,1725966650335,-500.0,0.00019799,2]
[337693935,1725966650344,-891.21,0.00019799,2]
[337693936,1725966650354,-1215.14,0.00019799,2]
[337693937,1725966650363,-500.0,0.00019799,2]
[337693938,1725966650372,-500.0,0.00019799,2]
[337693939,1725966650381,-1000.0,0.00019799,2]
[337693940,1725966650391,-1000.0,0.00019799,2]
[337693941,1725966650400,-1000.0,0.00019799,2]
[337693942,1725966650409,-1000.0,0.00019799,2]
[337693943,1725966650418,-500.0,0.00019799,2]
[337693944,1725966650427,-1000.0,0.00019799,2]
[337693945,1725966650436,-1000.0,0.00019799,2]
[337693946,1725966650451,-1000.0,0.00019799,2]
[337693947,1725966650460,-1000.0,0.00019799,2]
[337693948,1725966650469,-1000.0,0.00019799,2]
[337693949,1725966650478,-1000.0,0.00019799,2]
[337693950,1725966650487,-1000.0,0.00019799,2]
[337693951,1725966650497,-1000.0,0.00019799,2]
[337693952,1725966650507,-1000.0,0.00019799,2]
[337693953,1725966650516,-1000.0,0.00019799,2]
[337693954,1725966650526,-1000.0,0.00019799,2]
[337693955,1725966650535,-1000.0,0.00019799,2]
[337693956,1725966650544,-1000.0,0.00019799,2]
[337693957,1725966650553,-1000.0,0.00019799,2]
[337693958,1725966650563,-1000.0,0.00019799,2]
[337693959,1725966650572,-1000.0,0.00019799,2]
[337693960,1725966650581,-1000.0,0.00019799,2]
[337693961,1725966650590,-1000.0,0.00019799,2]
[337693962,1725966650600,-1000.0,0.00019799,2]
[337693963,1725966650610,-1000.0,0.00019799,2]
[337693964,1725966650619,-1000.0,0.00019799,2]
[337693965,1725966650628,-1000.0,0.00019799,2]
[337693966,1725966650638,-1000.0,0.00019799,2]
[337693967,1725966650647,-1000.0,0.00019799,2]
[337693968,1725966650656,-1000.0,0.00019799,2]
[337693969,1725966650666,-1000.0,0.00019799,2]
[337693970,1725966650676,-1000.0,0.00019799,2]
[337693971,1725966650686,-1000.0,0.00019799,2]
[337693972,1725966650697,-1000.0,0.00019799,2]
[337693973,1725966650707,-500.0,0.00019799,2]
[337693974,1725966650716,-1000.0,0.00019799,2]
[337693975,1725966650725,-1000.0,0.00019799,2]
[337693977,1725966650735,-1000.0,0.00019799,2]
[337693979,1725966650745,-1000.0,0.00019799,2]
[337693981,1725966650754,-1000.0,0.00019799,2]
[337693983,1725966650763,-1000.0,0.00019799,2]
[337693984,1725966650772,-500.0,0.00019799,2]
[337693985,1725966650783,-1000.0,0.00019799,2]
[337693986,1725966650792,-1000.0,0.00019799,2]
[337693987,1725966650801,-1000.0,0.00019799,2]
[337693988,1725966650810,-1059.900121,0.00019799,2]
[337693989,1725966650819,-1125.86,0.00019799,2]
[337693990,1725966650828,-500.0,0.00019799,2]
[337693991,1725966650838,-500.0,0.00019799,2]
[337693992,1725966650847,-500.0,0.00019799,2]
[337693993,1725966650857,-500.0,0.00019799,2]
[337693994,1725966650867,-500.0,0.00019799,2]
[337693995,1725966650877,-500.0,0.00019799,2]
[337693996,1725966650887,-500.0,0.00019799,2]
[337693997,1725966650896,-500.0,0.00019799,2]
[337693998,1725966650905,-466.85186051,0.00019799,2]
[337693999,1725966650914,-1429.74,0.00019799,2]
[337694000,1725966650924,-500.0,0.00019799,2]
[337694001,1725966650933,-500.0,0.00019799,2]
[337694002,1725966650943,-500.0,0.00019799,2]
[337694003,1725966650952,-500.0,0.00019799,2]
[337694004,1725966650962,-151.0,0.00019799,2]
[337694005,1725966650971,-151.0,0.00019799,2]
[337694006,1725966650981,-151.0,0.00019799,2]
[337694007,1725966650991,-867.86,0.00019799,2]
[337694008,1725966651000,-581.70437307,0.00019799,2]
[337694009,1725966651010,-500.0,0.00019799,2]
[337694010,1725966651019,-500.0,0.00019799,2]
[337694011,1725966651028,-571.43,0.00019799,2]
[337694012,1725966651037,-500.0,0.00019799,2]
[337694013,1725966651047,-616.07,0.00019799,2]
[337694014,1725966651056,-899.77,0.00019799,2]
[337694015,1725966651065,-151.0,0.00019799,2]